[Event "SAIF POWERTEC 45th BAN Ch 2019"]
[Site "Dhaka"]
[Date "2019.11.10"]
[Round "9.12"]
[White "Saiful Islam, Chowdhury"]
[Black "Hossain, Delwar"]
[Result "1-0"]
[ECO "B06"]
[WhiteElo "2159"]
[BlackElo "2092"]
[Annotator "NA"]
[PlyCount "151"]
[EventDate "2019.11.02"]
[EventType "swiss"]
[EventCountry "BAN"]
[SourceTitle "playchess.com"]
[Source "ChessBase"]
[SourceQuality "1"]
[TimeControl "40/5400+30:1800+30"]

{[%evp 42,151,92,93,70,81,95,106,94,97,119,126,188,194,209,221,189,195,229,181,173,130,153,156,315,303,341,358,365,297,341,340,522,310,335,438,554,668,716,345,289,361,460,357,423,424,424,94,60,22,62,0,0,0,0,0,20,0,0,0,0,0,0,0,0,0,0,-7,186,154,193,113,173,202,152,38,103,0,66,36,50,22,54,32767,580,0,1103,1781,1427,6079,6175,11904,32767,32767,32767,32767,32767,32767,32767,32767,32767,32767,32767,32767,32767,32767,32767,32767,12851,29988,12851,29988]} 1. e4 {[%emt 1:30:30]} d6 {[%emt 1:30:30]} 2. d4 {[%emt 0:00:30]} Nf6 {[%emt 0:00:30]} 3. Nc3 {[%emt 0:00:30]} g6 {[%emt 0:00:30]} 4. Nge2 {[%emt 0:00:30]} Bg7 {[%emt 0:00:30]} 5. f3 {[%emt 0:00:30]} (5. g3 O-O 6. Bg2 e5 7. O-O Nc6 8. dxe5 dxe5 9. Bg5 Bg4 10. Qc1 Qc8 11. Re1 Re8 12. Nd5 Nd7 13. c3 f6 14. Be3 Nd8 15. h3 Be6 16. Kh2 c6 17. Nb4 Nf7 {½-½ (40) Durarbayli,V (2590)-Petrosian,T (2629) Warsaw 2014}) 5... Nc6 {[%emt 0:00:30]} 6. Be3 {[%emt 0:00:30] B06: Modern Defence} a6 {[%emt 0:00:30]} 7. Qd2 {[%emt 0:00:30]} O-O {[%emt 0:00:30]} 8. g4 {[%emt 0:00:30]} e5 {[%emt 0:00:30]} 9. d5 {[%emt 0:00:30]} Nb8 $146 {[%emt 0:00:30]} ({Predecessor:} 9... Na5 10. Ng3 c5 11. dxc6 bxc6 12. Na4 Nb7 13. Nb6 Be6 14. Nxa8 Qxa8 {1-0 (29) Bauer,W-Brinkmann,W GER corr 1998}) 10. Ng3 {[%emt 0:00:30]} Ne8 {[%emt 0:00:30]} 11. h4 {[%emt 0:00:30]} f6 {[%emt 0:00:30]} 12. O-O-O {[%emt 0:00:30]} Rf7 {[%emt 0:00:30]} 13. Bh3 {[%emt 0:00:30]} a5 {[%emt 0:00:30]} 14. Bh6 {[%emt 0:00:30]} Na6 {[%emt 0:00:30]} 15. Bxg7 {[%emt 0:00:30]} Nxg7 {[%emt 0:00:30]} 16. Nce2 {[%emt 0:00:30]} Nc5 {[%emt 0:00:30]} 17. Rh2 {[%emt 0:00:30]} Bd7 {[%emt 0:00:30]} 18. Rdh1 {[%emt 0:00:30]} Qe7 {[%emt 0:00:30]} 19. Bg2 {[%emt 0:00:30]} Ne8 {[%emt 0:00:30]} 20. g5 {[%emt 0:00:30]} fxg5 {[%emt 0:00:30]} 21. h5 {[%emt 0:00:30]} Rg7 {[%emt 0:00:30]} (21... gxh5 $1 $11 22. Rxh5 g4 23. fxg4 Nf6 24. Rg5+ Kh8) 22. hxg6 {[%emt 0:00:30]} hxg6 {[%emt 0:00:30]} 23. Ng1 {[%emt 0:00:30]} Qf6 {[%emt 0:00:30]} 24. Rh8+ {[%emt 0:00:30]} Kf7 {[%emt 0:00:30]} 25. N3e2 {[%emt 0:00:30]} Ke7 {[%emt 0:00:30] [#]} 26. Nh3 $1 {[%emt 0:00:30]} Bxh3 {[%emt 0:00:30]} 27. Bxh3 {[%emt 0:00:30]} ({But not} 27. R1xh3 $6 Kf7 $16) 27... Rf7 {[%emt 0:00:30]} 28. Bg4 {[%emt 0:00:30]} Rf8 {[%emt 0:00:30]} 29. R8h7+ {[%emt 0:00:30]} Ng7 {[%emt 0:00:30]} 30. R1h6 {[%emt 0:00:30]} Rf7 {[%emt 0:00:30]} 31. b3 {[%emt 0:00:30]} (31. Kb1 $18) 31... b6 {[%emt 0:00:30]} 32. a3 {[%emt 0:00:30]} Ra7 $2 {[%emt 0:00:30]} (32... Rg8 $16 33. Kb2 Nd7) 33. Kb2 {[%emt 0:00:30]} Ne8 {[%emt 0:00:30]} 34. Rxf7+ {[%emt 0:00:30]} Kxf7 {[%emt 0:00:30] [#]} 35. Bf5 $1 {[%emt 0:00:30]} gxf5 {[%emt 0:00:30]} 36. Rxf6+ {[%emt 0:00:30]} Kxf6 {[%emt 0:00:30]} (36... Nxf6 {was necessary.} 37. Qxg5 fxe4) 37. Ng3 {[%emt 0:00:30]} fxe4 {[%emt 0:00:30]} 38. fxe4 {[%emt 0:00:30]} Kg6 {[%emt 0:00:30]} (38... Ra8 $142 39. Qf2+ Ke7) 39. Qf2 {[%emt 0:00:30]} Ng7 {[%emt 0:00:30]} 40. Nf5 {[%emt 0:00:30]} Nxf5 {[%emt 0:00:30]} 41. Qxf5+ {[%emt 0:30:30]} Kh6 {[%emt 0:30:30]} 42. b4 {[%emt 0:00:30]} axb4 {[%emt 0:00:30]} 43. axb4 {[%emt 0:00:30]} Na6 {[%emt 0:00:30]} 44. Qf8+ $2 {[%emt 0:00:30]} (44. Qh3+ $18 Kg6 45. Qa3) 44... Kh5 {[%emt 0:00:30] [#]} 45. c3 $2 {[%emt 0:00:30]} (45. Kb3 $1 $18) 45... g4 $1 {[%emt 0:00:30]} 46. Kc2 {[%emt 0:00:30]} (46. Qf2 $16) 46... Kh4 {[%emt 0:00:30]} 47. Qh8+ {[%emt 0:00:30]} Kg3 {[%emt 0:00:30]} 48. Qh1 {[%emt 0:00:30]} Ra8 {[%emt 0:00:30]} 49. Kd3 {[%emt 0:00:30]} Rf8 {[%emt 0:00:30]} 50. Qg1+ {[%emt 0:00:30]} Kh4 {[%emt 0:00:30]} 51. Qh2+ {[%emt 0:00:30]} Kg5 {[%emt 0:00:30]} 52. Kc4 {[%emt 0:00:30]} Rf3 {[%emt 0:00:30]} 53. Kb5 {[%emt 0:00:30]} Nb8 {[%emt 0:00:30]} 54. c4 {[%emt 0:00:30]} Nd7 $2 {[%emt 0:00:30]} (54... g3 $11 {and Black is okay.} 55. Qh7 Kf4) 55. Kc6 {[%emt 0:00:30]} Nf6 {[%emt 0:00:30]} 56. Kxc7 {[%emt 0:00:30]} Nxe4 {[%emt 0:00:30]} 57. Kxb6 {[%emt 0:00:30]} g3 {[%emt 0:00:30] [#]} 58. Qg2 $2 {[%emt 0:00:30]} ({Only move:} 58. Qh1 $1 $18 {[%cal Rh1f3]} Kf4 59. c5) 58... Kf4 {[%emt 0:00:30]} 59. c5 {[%emt 0:00:30]} Rf2 {[%emt 0:00:30]} 60. Qg1 {[%emt 0:00:30]} dxc5 $1 {[%emt 0:00:30]} 61. bxc5 {[%emt 0:00:30]} Rc2 $1 {[%emt 0:00:30]} 62. Qf1+ {[%emt 0:00:30]} Kg5 $2 {[%emt 0:00:30]} (62... Ke3 $11 {and Black is okay.}) 63. Qe1 $2 {[%emt 0:00:30]} ({Only move:} 63. Qf3 $18 Nxc5 64. Qxg3+ {[%mdl 64] Double Attack} Kf6 65. Qf3+ Ke7 {[#]} 66. d6+ $1 {[%mdl 512]} Ke6 67. Kb5) 63... g2 $2 {[%emt 0:00:30]} (63... Kf4 $11) 64. Qxe4 {[%emt 0:00:30]} Rb2+ {[%emt 0:00:30]} 65. Kc6 {[%emt 0:00:30]} g1=Q {[%emt 0:00:30]} 66. Qxe5+ {[%emt 0:00:30] Double Attack} Kh4 {[%emt 0:00:30]} 67. Qh8+ {[%emt 0:00:30]} Kg3 {[%emt 0:00:30]} 68. Qg7+ {[%emt 0:00:30]} Kf2 {[%emt 0:00:30]} 69. Qxb2+ {[%emt 0:00:30]} Kf3 {[%emt 0:00:30]} 70. d6 {[%emt 0:00:30]} Qg8 {[%emt 0:00:30]} 71. Qf6+ {[%emt 0:00:30]} Kg2 {[%emt 0:00:30]} 72. d7 {[%emt 0:00:30]} Qa8+ {[%emt 0:00:30]} 73. Kd6 {[%emt 0:00:30]} Qa6+ {[%emt 0:00:30]} 74. Ke7 {[%emt 0:00:30]} Qb7 {[%emt 0:00:30]} 75. c6 {[%emt 0:00:30]} Qb4+ {[%emt 0:00:30]} 76. Kf7 {[%emt 0:00:30]} 1-0